[Event "Titled Tuesday Blitz July 6 2021"]
[White "Plat, Vojtech"]
[Black "LEGENYA1998"]
[WhiteFideId "325740"]
[WhiteElo "2486"]
[BlackElo "2460"]
[Result "1/2-1/2"]
[Round "03"]
[TimeControl "180+1"]
[Date "2021.07.06"]
[WhiteClock "0:00:07"]
[BlackClock "0:00:11"]

1. e4 {[%clk 0:03:00]}  d5 {[%clk 0:02:51]} 2. exd5 {[%clk 0:03:00]}  Qxd5 {[%clk 0:02:51]} 3. d4 {[%clk 0:02:56]}  Nc6 {[%clk 0:02:50]} 4. Nf3 {[%clk 0:02:56]}  Bg4 {[%clk 0:02:50]} 5. Be2 {[%clk 0:02:55]}  O-O-O {[%clk 0:02:47]} 6. c4 {[%clk 0:02:49]}  Qh5 {[%clk 0:02:46]} 7. d5 {[%clk 0:02:48]}  e6 {[%clk 0:02:43]} 8. Nc3 {[%clk 0:02:36]}  Bb4 {[%clk 0:02:42]} 9. O-O {[%clk 0:02:34]}  Bxc3 {[%clk 0:02:41]} 10. bxc3 {[%clk 0:02:34]}  Nf6 {[%clk 0:02:38]} 11. h3 {[%clk 0:02:33]}  exd5 {[%clk 0:02:36]} 12. hxg4 {[%clk 0:02:29]}  Nxg4 {[%clk 0:02:36]} 13. Nh4 {[%clk 0:02:29]}  Nce5 {[%clk 0:02:29]} 14. g3 {[%clk 0:02:21]}  dxc4 {[%clk 0:02:24]} 15. Qa4 {[%clk 0:01:55]}  g5 {[%clk 0:02:23]} 16. Qxa7 {[%clk 0:01:53]}  gxh4 {[%clk 0:02:23]} 17. Bf4 {[%clk 0:01:48]}  hxg3 {[%clk 0:02:04]} 18. Bxg3 {[%clk 0:01:48]}  Rhg8 {[%clk 0:01:45]} 19. Rad1 {[%clk 0:01:21]}  Nc6 {[%clk 0:01:38]} 20. Qa8+ {[%clk 0:01:17]}  Nb8 {[%clk 0:01:38]} 21. Bf3 {[%clk 0:01:10]}  Rd3 {[%clk 0:01:22]} 22. Qxb7+ {[%clk 0:01:06]}  Kd7 {[%clk 0:01:21]} 23. Qxc7+ {[%clk 0:01:05]}  Ke6 {[%clk 0:01:20]} 24. Rxd3 {[%clk 0:00:58]}  cxd3 {[%clk 0:01:18]} 25. Re1+ {[%clk 0:00:58]}  Kf6 {[%clk 0:01:18]} 26. Qf4+ {[%clk 0:00:55]}  Qf5 {[%clk 0:01:18]} 27. Qd4+ {[%clk 0:00:53]}  Kg5 {[%clk 0:01:16]} 28. Bxg4 {[%clk 0:00:37]}  Qxg4 {[%clk 0:01:16]} 29. Re5+ {[%clk 0:00:33]}  f5 {[%clk 0:01:15]} 30. Qxd3 {[%clk 0:00:28]}  Nc6 {[%clk 0:01:04]} 31. Qe3+ {[%clk 0:00:24]}  Kh5 {[%clk 0:01:03]} 32. Re6 {[%clk 0:00:24]}  Rg6 {[%clk 0:01:01]} 33. Rxg6 {[%clk 0:00:22]}  hxg6 {[%clk 0:01:00]} 34. Kg2 {[%clk 0:00:20]}  Qa4 {[%clk 0:00:49]} 35. Qf3+ {[%clk 0:00:16]}  Kh6 {[%clk 0:00:49]} 36. Bf4+ {[%clk 0:00:16]}  Kg7 {[%clk 0:00:48]} 37. a3 {[%clk 0:00:13]}  Ne7 {[%clk 0:00:45]} 38. Be5+ {[%clk 0:00:12]}  Kf7 {[%clk 0:00:45]} 39. Bd4 {[%clk 0:00:12]}  Qxa3 {[%clk 0:00:43]} 40. Qb7 {[%clk 0:00:12]}  Qd6 {[%clk 0:00:42]} 41. Be3 {[%clk 0:00:11]}  Qd5+ {[%clk 0:00:40]} 42. Qxd5+ {[%clk 0:00:11]}  Nxd5 {[%clk 0:00:41]} 43. Bd2 {[%clk 0:00:12]}  Nb6 {[%clk 0:00:40]} 44. Kf3 {[%clk 0:00:12]}  Nc4 {[%clk 0:00:38]} 45. Bc1 {[%clk 0:00:12]}  Ke6 {[%clk 0:00:39]} 46. Ke2 {[%clk 0:00:12]}  Kd5 {[%clk 0:00:38]} 47. Bf4 {[%clk 0:00:12]}  Nb6 {[%clk 0:00:38]} 48. Kd3 {[%clk 0:00:12]}  Nc4 {[%clk 0:00:38]} 49. Bc7 {[%clk 0:00:11]}  Nb2+ {[%clk 0:00:38]} 50. Kc2 {[%clk 0:00:11]}  Nc4 {[%clk 0:00:38]} 51. Kb3 {[%clk 0:00:11]}  Nd2+ {[%clk 0:00:37]} 52. Kb4 {[%clk 0:00:11]}  Nc4 {[%clk 0:00:36]} 53. Bf4 {[%clk 0:00:11]}  Nb6 {[%clk 0:00:35]} 54. Kb5 {[%clk 0:00:11]}  Nc4 {[%clk 0:00:36]} 55. Bc1 {[%clk 0:00:11]}  Nd6+ {[%clk 0:00:34]} 56. Kb4 {[%clk 0:00:11]}  Nc4 {[%clk 0:00:35]} 57. Bf4 {[%clk 0:00:11]}  Nb6 {[%clk 0:00:34]} 58. Kb5 {[%clk 0:00:10]}  Nc4 {[%clk 0:00:35]} 59. Bc7 {[%clk 0:00:10]}  Nb2 {[%clk 0:00:33]} 60. f4 {[%clk 0:00:10]}  Nc4 {[%clk 0:00:33]} 61. Bb8 {[%clk 0:00:08]}  Nd2 {[%clk 0:00:32]} 62. Be5 {[%clk 0:00:08]}  Nc4 {[%clk 0:00:32]} 63. Bd4 {[%clk 0:00:08]}  Nd2 {[%clk 0:00:32]} 64. Kb6 {[%clk 0:00:09]}  Nc4+ {[%clk 0:00:32]} 65. Kc7 {[%clk 0:00:09]}  Nd2 {[%clk 0:00:31]} 66. Kd7 {[%clk 0:00:09]}  Nf3 {[%clk 0:00:26]} 67. Be3 {[%clk 0:00:07]}  Ke4 {[%clk 0:00:19]} 68. Bc1 {[%clk 0:00:07]}  Kd5 {[%clk 0:00:17]} 69. Ke7 {[%clk 0:00:07]}  Kc4 {[%clk 0:00:12]} 70. Kf6 {[%clk 0:00:07]}  Kxc3 {[%clk 0:00:12]} 71. Kxg6 {[%clk 0:00:08]}  Nd4 {[%clk 0:00:12]} 72. Be3 {[%clk 0:00:07]}  Ne6 {[%clk 0:00:12]} 73. Kxf5 {[%clk 0:00:07]}  Nxf4 {[%clk 0:00:11]} 1/2-1/2


[Site "https://www.chess.com"]

[Event "Titled Tuesday Blitz July 6 2021"]
[White "Priasmoro, Novendra"]
[Black "Koelle, Tobias"]
[WhiteFideId "7105029"]
[BlackFideId "16207378"]
[WhiteElo "2309"]
[BlackElo "2364"]
[Result "1-0"]
[Round "03"]
[TimeControl "180+1"]
[Date "2021.07.06"]
[WhiteClock "0:01:47"]
[BlackClock "0:00:32"]

1. e4 {[%clk 0:03:00]}  c5 {[%clk 0:02:56]} 2. Nf3 {[%clk 0:03:01]}  g6 {[%clk 0:02:52]} 3. d4 {[%clk 0:03:01]}  cxd4 {[%clk 0:02:53]} 4. Nxd4 {[%clk 0:03:02]}  Bg7 {[%clk 0:02:53]} 5. Nc3 {[%clk 0:03:02]}  Nc6 {[%clk 0:02:53]} 6. Be3 {[%clk 0:03:02]}  Nf6 {[%clk 0:02:53]} 7. Bc4 {[%clk 0:03:01]}  O-O {[%clk 0:02:53]} 8. Bb3 {[%clk 0:03:01]}  d6 {[%clk 0:02:53]} 9. f3 {[%clk 0:03:01]}  a6 {[%clk 0:02:51]} 10. Qd2 {[%clk 0:03:00]}  Nxd4 {[%clk 0:02:49]} 11. Bxd4 {[%clk 0:03:01]}  b5 {[%clk 0:02:50]} 12. O-O-O {[%clk 0:03:02]}  Bb7 {[%clk 0:02:47]} 13. h4 {[%clk 0:03:01]}  b4 {[%clk 0:02:45]} 14. Nd5 {[%clk 0:02:59]}  Bxd5 {[%clk 0:02:41]} 15. exd5 {[%clk 0:02:55]}  a5 {[%clk 0:02:41]} 16. Ba4 {[%clk 0:02:55]}  Qc8 {[%clk 0:02:23]} 17. Rhe1 {[%clk 0:02:49]}  Qc7 {[%clk 0:02:19]} 18. Kb1 {[%clk 0:02:46]}  Rac8 {[%clk 0:02:18]} 19. g4 {[%clk 0:02:40]}  Rfd8 {[%clk 0:01:29]} 20. h5 {[%clk 0:02:39]}  Qc4 {[%clk 0:01:13]} 21. Rxe7 {[%clk 0:02:28]}  Nxd5 {[%clk 0:01:12]} 22. Bb3 {[%clk 0:02:17]}  Qxd4 {[%clk 0:00:35]} 23. Qxd4 {[%clk 0:02:16]}  Nxe7 {[%clk 0:00:35]} 24. Qf4 {[%clk 0:02:12]}  d5 {[%clk 0:00:34]} 25. h6 {[%clk 0:02:09]}  Bh8 {[%clk 0:00:32]} 26. Re1 {[%clk 0:02:07]}  Re8 {[%clk 0:00:32]} 27. Ba4 {[%clk 0:01:55]}  Nc6 {[%clk 0:00:31]} 28. Rxe8+ {[%clk 0:01:47]}  Rxe8 {[%clk 0:00:32]} 29. a3 {[%clk 0:01:47]} 1-0


[Site "https://www.chess.com"]

[Event "Titled Tuesday Blitz July 6 2021"]
[White "Pridorozhni, Aleksei"]
[Black "Maltsevskaya, Aleksandra"]
[WhiteFideId "4127870"]
[BlackFideId "24174041"]
[WhiteElo "2565"]
[BlackElo "2225"]
[Result "1-0"]
[Round "03"]
[TimeControl "180+1"]
[Date "2021.07.06"]
[WhiteClock "0:00:26"]
[BlackClock "0:00:03"]

1. e4 {[%clk 0:03:00]}  e6 {[%clk 0:02:48]} 2. d4 {[%clk 0:02:59]}  d5 {[%clk 0:02:48]} 3. Nc3 {[%clk 0:02:58]}  dxe4 {[%clk 0:02:36]} 4. Nxe4 {[%clk 0:02:58]}  Nf6 {[%clk 0:02:37]} 5. Nxf6+ {[%clk 0:02:57]}  Qxf6 {[%clk 0:02:32]} 6. Nf3 {[%clk 0:02:58]}  h6 {[%clk 0:02:27]} 7. Bd3 {[%clk 0:02:57]}  c5 {[%clk 0:02:26]} 8. Be3 {[%clk 0:02:55]}  Nd7 {[%clk 0:02:21]} 9. c3 {[%clk 0:02:55]}  Bd6 {[%clk 0:02:18]} 10. Nd2 {[%clk 0:02:48]}  cxd4 {[%clk 0:02:11]} 11. Ne4 {[%clk 0:02:48]}  Qe7 {[%clk 0:02:08]} 12. Nxd6+ {[%clk 0:02:48]}  Qxd6 {[%clk 0:02:09]} 13. Bxd4 {[%clk 0:02:48]}  e5 {[%clk 0:02:05]} 14. Be3 {[%clk 0:02:47]}  Qe7 {[%clk 0:01:55]} 15. O-O {[%clk 0:02:42]}  O-O {[%clk 0:01:55]} 16. Re1 {[%clk 0:02:42]}  Nc5 {[%clk 0:01:50]} 17. Bf1 {[%clk 0:02:37]}  Be6 {[%clk 0:01:48]} 18. Qh5 {[%clk 0:02:29]}  Nd7 {[%clk 0:01:41]} 19. b3 {[%clk 0:02:21]}  a6 {[%clk 0:01:38]} 20. c4 {[%clk 0:02:17]}  f5 {[%clk 0:01:18]} 21. Rad1 {[%clk 0:02:13]}  e4 {[%clk 0:01:12]} 22. Bd4 {[%clk 0:02:01]}  Rad8 {[%clk 0:01:08]} 23. f3 {[%clk 0:01:52]}  Nf6 {[%clk 0:00:32]} 24. Qh4 {[%clk 0:01:52]}  exf3 {[%clk 0:00:27]} 25. gxf3 {[%clk 0:01:51]}  Qf7 {[%clk 0:00:15]} 26. Bc3 {[%clk 0:01:39]}  Bd7 {[%clk 0:00:08]} 27. Bg2 {[%clk 0:01:30]}  Bc6 {[%clk 0:00:08]} 28. Kh1 {[%clk 0:01:01]}  Rxd1 {[%clk 0:00:07]} 29. Rxd1 {[%clk 0:01:02]}  Qh5 {[%clk 0:00:04]} 30. Bxf6 {[%clk 0:00:44]}  Bxf3 {[%clk 0:00:03]} 31. Qxh5 {[%clk 0:00:44]}  Bxh5 {[%clk 0:00:03]} 32. Bxg7 {[%clk 0:00:45]}  Kxg7 {[%clk 0:00:03]} 33. Rd7+ {[%clk 0:00:45]}  Kf6 {[%clk 0:00:04]} 34. Bxb7 {[%clk 0:00:45]}  f4 {[%clk 0:00:04]} 35. Kg2 {[%clk 0:00:45]}  Re8 {[%clk 0:00:04]} 36. Bf3 {[%clk 0:00:44]}  Rg8+ {[%clk 0:00:04]} 37. Kf2 {[%clk 0:00:44]}  Bg6 {[%clk 0:00:05]} 38. Rd6+ {[%clk 0:00:43]}  Kg5 {[%clk 0:00:05]} 39. c5 {[%clk 0:00:41]}  a5 {[%clk 0:00:04]} 40. c6 {[%clk 0:00:39]}  Rc8 {[%clk 0:00:04]} 41. h4+ {[%clk 0:00:37]}  Kf5 {[%clk 0:00:03]} 42. h5 {[%clk 0:00:31]}  Bf7 {[%clk 0:00:03]} 43. Rxh6 {[%clk 0:00:32]}  a4 {[%clk 0:00:03]} 44. bxa4 {[%clk 0:00:31]}  Bxa2 {[%clk 0:00:02]} 45. Rd6 {[%clk 0:00:27]}  Bg8 {[%clk 0:00:03]} 46. a5 {[%clk 0:00:26]}  Ra8 {[%clk 0:00:03]} 47. c7 {[%clk 0:00:25]}  Rc8 {[%clk 0:00:03]} 48. Rd8 {[%clk 0:00:26]} 1-0


[Site "https://www.chess.com"]

[Event "Titled Tuesday Blitz July 6 2021"]
[White "Pruijssers, Roeland"]
[Black "Araujo Filho, Luiz Antonio Coel"]
[WhiteFideId "1013068"]
[BlackFideId "2130661"]
[WhiteElo "2545"]
[BlackElo "2262"]
[Result "1-0"]
[Round "03"]
[TimeControl "180+1"]
[Date "2021.07.06"]
[WhiteClock "0:00:38"]
[BlackClock "0:00:11"]

1. e4 {[%clk 0:03:00]}  c6 {[%clk 0:02:59]} 2. d4 {[%clk 0:03:00]}  d5 {[%clk 0:03:00]} 3. exd5 {[%clk 0:03:01]}  cxd5 {[%clk 0:03:00]} 4. Bd3 {[%clk 0:03:01]}  Nf6 {[%clk 0:03:00]} 5. c3 {[%clk 0:02:55]}  Nc6 {[%clk 0:03:00]} 6. f4 {[%clk 0:02:52]}  e6 {[%clk 0:02:58]} 7. Nf3 {[%clk 0:02:51]}  Be7 {[%clk 0:02:55]} 8. O-O {[%clk 0:02:51]}  O-O {[%clk 0:02:55]} 9. Nbd2 {[%clk 0:02:47]}  a6 {[%clk 0:02:56]} 10. Ne5 {[%clk 0:02:47]}  Qc7 {[%clk 0:02:55]} 11. Ndf3 {[%clk 0:02:46]}  b5 {[%clk 0:02:55]} 12. Qe2 {[%clk 0:02:44]}  b4 {[%clk 0:02:54]} 13. Nxc6 {[%clk 0:02:16]}  Qxc6 {[%clk 0:02:54]} 14. cxb4 {[%clk 0:02:16]}  Bxb4 {[%clk 0:02:53]} 15. a3 {[%clk 0:02:15]}  Bd6 {[%clk 0:02:49]} 16. b4 {[%clk 0:02:12]}  Bb7 {[%clk 0:02:46]} 17. Bd2 {[%clk 0:02:05]}  Rac8 {[%clk 0:02:43]} 18. Rfb1 {[%clk 0:01:56]}  Qc7 {[%clk 0:02:35]} 19. g3 {[%clk 0:01:51]}  Qb6 {[%clk 0:02:29]} 20. a4 {[%clk 0:01:49]}  Ne4 {[%clk 0:02:22]} 21. a5 {[%clk 0:01:39]}  Qa7 {[%clk 0:02:14]} 22. b5 {[%clk 0:01:39]}  axb5 {[%clk 0:02:10]} 23. Rxb5 {[%clk 0:01:33]}  Ba6 {[%clk 0:01:55]} 24. Rb6 {[%clk 0:01:32]}  Bxd3 {[%clk 0:01:54]} 25. Qxd3 {[%clk 0:01:33]}  Rc4 {[%clk 0:01:37]} 26. Rb5 {[%clk 0:01:19]}  Rfc8 {[%clk 0:01:31]} 27. a6 {[%clk 0:01:11]}  Rb8 {[%clk 0:00:58]} 28. Rxb8+ {[%clk 0:00:51]}  Bxb8 {[%clk 0:00:59]} 29. Be3 {[%clk 0:00:47]}  Qc7 {[%clk 0:00:33]} 30. Rb1 {[%clk 0:00:41]}  Rc3 {[%clk 0:00:13]} 31. Qb5 {[%clk 0:00:38]}  Ba7 {[%clk 0:00:11]} 32. Qe8# {[%clk 0:00:38]} 1-0


[Site "https://www.chess.com"]

[Event "Titled Tuesday Blitz July 6 2021"]
[White "Riazantsev, Alexander"]
[Black "Saravana, Krishnan P."]
[WhiteFideId "4125029"]
[BlackFideId "5018382"]
[WhiteElo "2497"]
[BlackElo "2245"]
[Result "1-0"]
[Round "03"]
[TimeControl "180+1"]
[Date "2021.07.06"]
[WhiteClock "0:00:24"]
[BlackClock "0:00:13"]

1. d4 {[%clk 0:03:00]}  Nf6 {[%clk 0:02:59]} 2. c4 {[%clk 0:03:01]}  g6 {[%clk 0:02:58]} 3. Nc3 {[%clk 0:03:01]}  Bg7 {[%clk 0:02:59]} 4. e4 {[%clk 0:03:00]}  d6 {[%clk 0:02:59]} 5. Be2 {[%clk 0:03:00]}  O-O {[%clk 0:02:59]} 6. Be3 {[%clk 0:03:01]}  Na6 {[%clk 0:02:59]} 7. Nf3 {[%clk 0:03:00]}  e5 {[%clk 0:02:58]} 8. d5 {[%clk 0:02:57]}  Ng4 {[%clk 0:02:57]} 9. Bg5 {[%clk 0:02:57]}  f6 {[%clk 0:02:57]} 10. Bh4 {[%clk 0:02:56]}  h5 {[%clk 0:02:57]} 11. Nd2 {[%clk 0:02:50]}  Nh6 {[%clk 0:02:56]} 12. f3 {[%clk 0:02:44]}  Nc5 {[%clk 0:02:54]} 13. b4 {[%clk 0:02:40]}  Nd7 {[%clk 0:02:53]} 14. Nb3 {[%clk 0:02:40]}  Rf7 {[%clk 0:02:52]} 15. Qd2 {[%clk 0:02:38]}  Nf8 {[%clk 0:02:50]} 16. c5 {[%clk 0:02:38]}  g5 {[%clk 0:02:50]} 17. Bf2 {[%clk 0:02:38]}  Ng6 {[%clk 0:02:50]} 18. Be3 {[%clk 0:02:18]}  Nf4 {[%clk 0:02:24]} 19. Bc4 {[%clk 0:02:18]}  Kh8 {[%clk 0:02:07]} 20. h4 {[%clk 0:02:15]}  f5 {[%clk 0:01:58]} 21. g3 {[%clk 0:02:09]}  Ng6 {[%clk 0:01:35]} 22. hxg5 {[%clk 0:02:05]}  f4 {[%clk 0:01:32]} 23. gxh6 {[%clk 0:02:05]}  Bxh6 {[%clk 0:01:30]} 24. Rxh5 {[%clk 0:01:59]}  Rh7 {[%clk 0:01:25]} 25. Bg1 {[%clk 0:01:45]}  Qf8 {[%clk 0:01:15]} 26. g4 {[%clk 0:01:43]}  a5 {[%clk 0:01:11]} 27. bxa5 {[%clk 0:01:38]}  Bd7 {[%clk 0:01:09]} 28. O-O-O {[%clk 0:01:37]}  b6 {[%clk 0:01:01]} 29. cxb6 {[%clk 0:01:36]}  cxb6 {[%clk 0:01:01]} 30. Bxb6 {[%clk 0:01:36]}  Rc8 {[%clk 0:01:00]} 31. Qd3 {[%clk 0:01:31]}  Bxg4 {[%clk 0:00:57]} 32. fxg4 {[%clk 0:01:29]}  f3+ {[%clk 0:00:57]} 33. Kb2 {[%clk 0:01:29]}  Nf4 {[%clk 0:00:57]} 34. Qf1 {[%clk 0:01:25]}  Nxh5 {[%clk 0:00:56]} 35. gxh5 {[%clk 0:01:25]}  Rg7 {[%clk 0:00:54]} 36. Ka3 {[%clk 0:01:11]}  Rg2 {[%clk 0:00:49]} 37. Kb4 {[%clk 0:01:04]}  Rb8 {[%clk 0:00:45]} 38. Rd3 {[%clk 0:01:03]}  f2 {[%clk 0:00:36]} 39. Nb5 {[%clk 0:00:39]}  Rxb6 {[%clk 0:00:30]} 40. axb6 {[%clk 0:00:40]}  Rg1 {[%clk 0:00:30]} 41. Rc3 {[%clk 0:00:32]}  Rxf1 {[%clk 0:00:28]} 42. Bxf1 {[%clk 0:00:33]}  Qb8 {[%clk 0:00:26]} 43. Ka5 {[%clk 0:00:30]}  Kg7 {[%clk 0:00:18]} 44. Ka6 {[%clk 0:00:29]}  Kf6 {[%clk 0:00:17]} 45. b7 {[%clk 0:00:28]}  Be3 {[%clk 0:00:13]} 46. Rc8 {[%clk 0:00:24]} 1-0


[Site "https://www.chess.com"]

[Event "Titled Tuesday Blitz July 6 2021"]
[White "Rodrigues, Bruno Morado"]
[Black "Matinian, Nikita"]
[WhiteFideId "2115654"]
[BlackFideId "24129100"]
[WhiteElo "2040"]
[BlackElo "2410"]
[Result "0-1"]
[Round "03"]
[TimeControl "180+1"]
[Date "2021.07.06"]
[WhiteClock "0:00:25"]
[BlackClock "0:01:18"]

1. d4 {[%clk 0:03:00]}  f5 {[%clk 0:02:59]} 2. e4 {[%clk 0:02:58]}  fxe4 {[%clk 0:02:58]} 3. Nc3 {[%clk 0:02:53]}  d5 {[%clk 0:02:58]} 4. Qh5+ {[%clk 0:02:52]}  g6 {[%clk 0:02:56]} 5. Qxd5 {[%clk 0:02:53]}  Nd7 {[%clk 0:02:50]} 6. Nxe4 {[%clk 0:02:49]}  c6 {[%clk 0:02:45]} 7. Qg5 {[%clk 0:02:29]}  Ngf6 {[%clk 0:02:44]} 8. Bd3 {[%clk 0:02:26]}  Nxe4 {[%clk 0:02:40]} 9. Bxe4 {[%clk 0:02:27]}  Nf6 {[%clk 0:02:41]} 10. Bd3 {[%clk 0:02:10]}  Qxd4 {[%clk 0:02:36]} 11. Nf3 {[%clk 0:02:10]}  Qd5 {[%clk 0:02:37]} 12. O-O {[%clk 0:02:07]}  Bf5 {[%clk 0:02:30]} 13. Bxf5 {[%clk 0:02:04]}  gxf5 {[%clk 0:02:31]} 14. Bf4 {[%clk 0:02:00]}  Rg8 {[%clk 0:02:30]} 15. Rad1 {[%clk 0:01:50]}  Qe4 {[%clk 0:02:16]} 16. Rfe1 {[%clk 0:01:46]}  Rxg5 {[%clk 0:02:05]} 17. Rxe4 {[%clk 0:01:45]}  Rxg2+ {[%clk 0:02:05]} 18. Kxg2 {[%clk 0:01:45]}  Nxe4 {[%clk 0:02:03]} 19. c3 {[%clk 0:01:27]}  e6 {[%clk 0:02:01]} 20. Nd4 {[%clk 0:01:22]}  Kf7 {[%clk 0:02:00]} 21. Re1 {[%clk 0:01:22]}  Bc5 {[%clk 0:01:59]} 22. f3 {[%clk 0:01:20]}  Rg8+ {[%clk 0:01:58]} 23. Bg3 {[%clk 0:01:16]}  Nxg3 {[%clk 0:01:53]} 24. hxg3 {[%clk 0:01:15]}  Bxd4 {[%clk 0:01:51]} 25. cxd4 {[%clk 0:01:15]}  Rd8 {[%clk 0:01:52]} 26. Rh1 {[%clk 0:01:08]}  Kg6 {[%clk 0:01:50]} 27. Re1 {[%clk 0:01:07]}  Kf6 {[%clk 0:01:50]} 28. Rh1 {[%clk 0:00:46]}  Rxd4 {[%clk 0:01:48]} 29. Rxh7 {[%clk 0:00:44]}  Rd2+ {[%clk 0:01:48]} 30. Kh3 {[%clk 0:00:45]}  Rxb2 {[%clk 0:01:49]} 31. g4 {[%clk 0:00:44]}  fxg4+ {[%clk 0:01:48]} 32. fxg4 {[%clk 0:00:45]}  c5 {[%clk 0:01:48]} 33. Rc7 {[%clk 0:00:44]}  e5 {[%clk 0:01:40]} 34. Rxc5 {[%clk 0:00:43]}  Rxa2 {[%clk 0:01:39]} 35. Rb5 {[%clk 0:00:42]}  b6 {[%clk 0:01:39]} 36. Rd5 {[%clk 0:00:43]}  Re2 {[%clk 0:01:35]} 37. Kg3 {[%clk 0:00:42]}  Kg5 {[%clk 0:01:33]} 38. Kf3 {[%clk 0:00:41]}  Re1 {[%clk 0:01:32]} 39. Rd7 {[%clk 0:00:34]}  a5 {[%clk 0:01:32]} 40. Rb7 {[%clk 0:00:34]}  Rb1 {[%clk 0:01:26]} 41. Ke4 {[%clk 0:00:34]}  Kxg4 {[%clk 0:01:25]} 42. Rg7+ {[%clk 0:00:32]}  Kh5 {[%clk 0:01:24]} 43. Kxe5 {[%clk 0:00:33]}  a4 {[%clk 0:01:25]} 44. Kd4 {[%clk 0:00:32]}  b5 {[%clk 0:01:23]} 45. Kc3 {[%clk 0:00:31]}  a3 {[%clk 0:01:22]} 46. Ra7 {[%clk 0:00:30]}  b4+ {[%clk 0:01:22]} 47. Kc2 {[%clk 0:00:30]}  Rb2+ {[%clk 0:01:22]} 48. Kc1 {[%clk 0:00:31]}  Kg4 {[%clk 0:01:21]} 49. Rf7 {[%clk 0:00:26]}  b3 {[%clk 0:01:17]} 50. Ra7 {[%clk 0:00:25]}  Rc2+ {[%clk 0:01:17]} 51. Kb1 {[%clk 0:00:24]}  a2+ {[%clk 0:01:17]} 52. Ka1 {[%clk 0:00:25]}  Rc1+ {[%clk 0:01:18]} 53. Kb2 {[%clk 0:00:25]}  Rb1+ {[%clk 0:01:18]} 0-1


[Site "https://www.chess.com"]

[Event "Titled Tuesday Blitz July 6 2021"]
[White "Seul, Georg"]
[Black "Assaubayeva, Bibisara"]
[WhiteFideId "4601653"]
[BlackFideId "13708694"]
[WhiteElo "2332"]
[BlackElo "2232"]
[Result "0-1"]
[Round "03"]
[TimeControl "180+1"]
[Date "2021.07.06"]
[WhiteClock "0:00:04"]
[BlackClock "0:00:26"]

1. e4 {[%clk 0:03:00]}  c5 {[%clk 0:02:59]} 2. Nf3 {[%clk 0:03:00]}  d6 {[%clk 0:02:59]} 3. Bc4 {[%clk 0:03:00]}  Nf6 {[%clk 0:02:58]} 4. d3 {[%clk 0:02:59]}  Nc6 {[%clk 0:02:54]} 5. O-O {[%clk 0:02:54]}  e6 {[%clk 0:02:54]} 6. Bb3 {[%clk 0:02:53]}  Be7 {[%clk 0:02:53]} 7. c3 {[%clk 0:02:53]}  O-O {[%clk 0:02:53]} 8. Re1 {[%clk 0:02:53]}  b6 {[%clk 0:02:51]} 9. d4 {[%clk 0:02:53]}  cxd4 {[%clk 0:02:31]} 10. cxd4 {[%clk 0:02:53]}  d5 {[%clk 0:02:27]} 11. e5 {[%clk 0:02:52]}  Ne4 {[%clk 0:02:27]} 12. Nc3 {[%clk 0:02:53]}  Nxc3 {[%clk 0:02:27]} 13. bxc3 {[%clk 0:02:53]}  Ba6 {[%clk 0:02:28]} 14. Bc2 {[%clk 0:02:50]}  Rc8 {[%clk 0:02:26]} 15. h4 {[%clk 0:02:33]}  Na5 {[%clk 0:02:19]} 16. Re3 {[%clk 0:01:59]}  f5 {[%clk 0:02:13]} 17. exf6 {[%clk 0:01:54]}  Rxf6 {[%clk 0:02:11]} 18. Ng5 {[%clk 0:01:44]}  Rh6 {[%clk 0:02:03]} 19. Qg4 {[%clk 0:01:08]}  Qd6 {[%clk 0:01:30]} 20. Rg3 {[%clk 0:00:59]}  Bf6 {[%clk 0:01:25]} 21. Bf4 {[%clk 0:00:57]}  Qd7 {[%clk 0:01:16]} 22. Be5 {[%clk 0:00:50]}  Bxe5 {[%clk 0:01:10]} 23. dxe5 {[%clk 0:00:50]}  Nc4 {[%clk 0:01:08]} 24. Re1 {[%clk 0:00:41]}  Rf8 {[%clk 0:01:00]} 25. f4 {[%clk 0:00:35]}  Bc8 {[%clk 0:00:55]} 26. Rd1 {[%clk 0:00:32]}  Kh8 {[%clk 0:00:52]} 27. h5 {[%clk 0:00:32]}  Qe7 {[%clk 0:00:38]} 28. Nf3 {[%clk 0:00:31]}  Qf7 {[%clk 0:00:32]} 29. f5 {[%clk 0:00:09]}  Ne3 {[%clk 0:00:28]} 30. fxe6 {[%clk 0:00:06]}  Bxe6 {[%clk 0:00:26]} 31. Qe4 {[%clk 0:00:04]} 0-1


[Site "https://www.chess.com"]

[Event "Titled Tuesday Blitz July 6 2021"]
[White "Shahade, Gregory"]
[Black "Pereira, Juliano Resende M"]
[WhiteFideId "2009064"]
[BlackFideId "2109816"]
[WhiteElo "2736"]
[BlackElo "2429"]
[Result "1-0"]
[Round "03"]
[TimeControl "180+1"]
[Date "2021.07.06"]
[WhiteClock "0:00:04"]
[BlackClock "0:00:22"]

1. e4 {[%clk 0:03:00]}  c5 {[%clk 0:02:53]} 2. Nf3 {[%clk 0:03:00]}  d6 {[%clk 0:02:53]} 3. d4 {[%clk 0:03:01]}  cxd4 {[%clk 0:02:54]} 4. Nxd4 {[%clk 0:03:01]}  Nf6 {[%clk 0:02:55]} 5. Nc3 {[%clk 0:03:01]}  a6 {[%clk 0:02:56]} 6. Be3 {[%clk 0:02:54]}  Nbd7 {[%clk 0:02:48]} 7. f3 {[%clk 0:02:53]}  e6 {[%clk 0:02:43]} 8. Qd2 {[%clk 0:02:45]}  b5 {[%clk 0:02:42]} 9. g4 {[%clk 0:02:44]}  Ne5 {[%clk 0:02:37]} 10. g5 {[%clk 0:02:36]}  Nfd7 {[%clk 0:02:36]} 11. f4 {[%clk 0:02:35]}  Nc4 {[%clk 0:02:33]} 12. Bxc4 {[%clk 0:02:34]}  bxc4 {[%clk 0:02:34]} 13. O-O-O {[%clk 0:02:01]}  Qc7 {[%clk 0:02:16]} 14. f5 {[%clk 0:01:58]}  Ne5 {[%clk 0:01:54]} 15. fxe6 {[%clk 0:01:46]}  fxe6 {[%clk 0:01:53]} 16. Rhf1 {[%clk 0:01:45]}  Be7 {[%clk 0:01:50]} 17. Qg2 {[%clk 0:01:36]}  Rb8 {[%clk 0:01:30]} 18. Qh3 {[%clk 0:01:36]}  Qd7 {[%clk 0:01:21]} 19. Rd2 {[%clk 0:01:20]}  Qb7 {[%clk 0:01:11]} 20. b3 {[%clk 0:01:10]}  cxb3 {[%clk 0:01:07]} 21. axb3 {[%clk 0:01:11]}  Qc7 {[%clk 0:00:56]} 22. Nxe6 {[%clk 0:00:30]}  Bxe6 {[%clk 0:00:44]} 23. Qxe6 {[%clk 0:00:31]}  Qxc3 {[%clk 0:00:44]} 24. Bd4 {[%clk 0:00:30]}  Qc8 {[%clk 0:00:26]} 25. Qd5 {[%clk 0:00:23]}  Rb5 {[%clk 0:00:24]} 26. Bxe5 {[%clk 0:00:11]}  Rxd5 {[%clk 0:00:21]} 27. exd5 {[%clk 0:00:12]}  Bxg5 {[%clk 0:00:17]} 28. Bxd6 {[%clk 0:00:09]}  Bxd2+ {[%clk 0:00:16]} 29. Kxd2 {[%clk 0:00:10]}  Qd7 {[%clk 0:00:16]} 30. Re1+ {[%clk 0:00:09]}  Kd8 {[%clk 0:00:16]} 31. Re6 {[%clk 0:00:09]}  Re8 {[%clk 0:00:15]} 32. Rxe8+ {[%clk 0:00:08]}  Kxe8 {[%clk 0:00:15]} 33. Bf4 {[%clk 0:00:08]}  Qxd5+ {[%clk 0:00:16]} 34. Ke3 {[%clk 0:00:08]}  g6 {[%clk 0:00:17]} 35. c4 {[%clk 0:00:08]}  Qd1 {[%clk 0:00:18]} 36. Be5 {[%clk 0:00:07]}  Qxb3+ {[%clk 0:00:19]} 37. Kd4 {[%clk 0:00:08]}  Qd1+ {[%clk 0:00:19]} 38. Kc5 {[%clk 0:00:08]}  a5 {[%clk 0:00:19]} 39. Kb5 {[%clk 0:00:07]}  Qb1+ {[%clk 0:00:19]} 40. Kxa5 {[%clk 0:00:07]}  Kd7 {[%clk 0:00:20]} 41. Bc3 {[%clk 0:00:06]}  Kc6 {[%clk 0:00:21]} 42. Ka4 {[%clk 0:00:05]}  Qb3+ {[%clk 0:00:22]} 43. Kxb3 {[%clk 0:00:05]}  Kc5 {[%clk 0:00:22]} 44. Bd2 {[%clk 0:00:04]}  g5 {[%clk 0:00:23]} 45. Bxg5 {[%clk 0:00:04]}  Kd4 {[%clk 0:00:22]} 46. Bh6 {[%clk 0:00:04]} 1-0


[Site "https://www.chess.com"]